fUSD/lending_fUSD_20240420
["ID","MTS","AMOUNT","RATE_DAILY","PERIOD"]
[323010029,1713586251578,-500.0,0.00015342,2]
[323010030,1713586251587,-500.0,0.00015342,2]
[323010031,1713586251597,-1062.51,0.00015342,2]
[323010032,1713586251606,-500.0,0.00015342,2]
[323010033,1713586251616,-500.0,0.00015342,2]
[323010034,1713586251626,-675.52,0.00015342,2]
[323010035,1713586251636,-500.0,0.00015342,2]
[323010036,1713586251645,-603.37637422,0.00015342,2]
[323010037,1713586251655,-500.0,0.00015342,2]
[323010038,1713586251664,-500.0,0.00015342,2]
[323010039,1713586251674,-500.0,0.00015342,2]
[323010040,1713586251683,-990.99,0.00015342,2]
[323010041,1713586251692,-649.05,0.00015342,2]
[323010042,1713586251702,-500.0,0.00015342,2]
[323010043,1713586251712,-500.0,0.00015342,2]
[323010044,1713586251721,-500.0,0.00015342,2]
[323010045,1713586251730,-500.0,0.00015342,2]
[323010046,1713586251739,-500.0,0.00015342,2]
[323010047,1713586251749,-500.0,0.00015342,2]
[323010048,1713586251758,-801.41,0.00015342,2]
[323010049,1713586251768,-779.97,0.00015342,2]
[323010050,1713586251777,-500.0,0.00015342,2]
[323010051,1713586251786,-1528.8,0.00015342,2]
[323010052,1713586251798,-500.0,0.00015342,2]
[323010053,1713586251807,-687.02,0.00015342,2]
[323010054,1713586251816,-500.0,0.00015342,2]
[323010055,1713586251825,-500.0,0.00015342,2]
[323010056,1713586251835,-592.68,0.00015342,2]
[323010057,1713586251844,-823.23,0.00015342,2]
[323010058,1713586251853,-500.0,0.00015342,2]
[323010059,1713586251862,-500.0,0.00015342,2]
[323010060,1713586251872,-500.0,0.00015342,2]
[323010061,1713586251881,-523.78,0.00015342,2]
[323010062,1713586251890,-553.03,0.00015342,2]
[323010063,1713586251900,-500.0,0.00015342,2]
[323010064,1713586251910,-1125.82,0.00015342,2]
[323010065,1713586251919,-500.0,0.00015342,2]
[323010066,1713586251929,-1064.54,0.00015342,2]
[323010067,1713586251938,-941.27,0.00015342,2]
[323010068,1713586251948,-500.0,0.00015342,2]
[323010069,1713586251958,-626.11,0.00015342,2]
[323010070,1713586251967,-500.0,0.00015342,2]
[323010071,1713586251977,-698.64,0.00015342,2]
[323010072,1713586251987,-500.0,0.00015342,2]
[323010073,1713586251996,-1643.56,0.00015342,2]
[323010074,1713586252005,-1712.38,0.00015342,2]
[323010075,1713586252014,-500.0,0.00015342,2]
[323010076,1713586252024,-500.0,0.00015342,2]
[323010077,1713586252033,-854.2,0.00015342,2]
[323010078,1713586252043,-543.23,0.00015342,2]
[323010079,1713586252054,-500.0,0.00015342,2]
[323010080,1713586252063,-500.0,0.00015342,2]
[323010081,1713586252072,-500.0,0.00015342,2]
[323010082,1713586252082,-500.0,0.00015342,2]
[323010083,1713586252091,-500.0,0.00015342,2]
[323010084,1713586252101,-1607.01,0.00015342,2]
[323010085,1713586252110,-505.57,0.00015342,2]
[323010086,1713586252120,-1282.42,0.00015342,2]
[323010087,1713586252129,-500.0,0.00015342,2]
[323010088,1713586252138,-246.52,0.00015342,2]
[323010089,1713586252148,-500.0,0.00015342,2]
[323010090,1713586252157,-454.82056822,0.00015342,2]
[323010091,1713586252166,-500.0,0.00015342,2]
[323010092,1713586252175,-515.1,0.00015342,2]
[323010093,1713586252185,-1018.55,0.00015342,2]
[323010094,1713586252194,-802.64,0.00015342,2]
[323010095,1713586252204,-500.0,0.00015342,2]
[323010096,1713586252213,-541.43,0.00015342,2]
[323010097,1713586252222,-600.25,0.00015342,2]
[323010098,1713586252231,-1783.59,0.00015342,2]
[323010099,1713586252240,-668.56,0.00015342,2]
[323010100,1713586252249,-578.6,0.00015342,2]
[323010101,1713586252259,-859.39,0.00015342,2]
[323010102,1713586252269,-500.0,0.00015342,2]
[323010103,1713586252279,-500.0,0.00015342,2]
[323010104,1713586252291,-500.0,0.00015342,2]
[323010105,1713586252305,-500.0,0.00015342,2]
[323010106,1713586252321,-1019.9,0.00015342,2]
[323010107,1713586252330,-500.0,0.00015342,2]
[323010108,1713586252339,-1356.42,0.00015342,2]
[323010109,1713586252348,-1195.95,0.00015342,2]
[323010110,1713586252359,-811.29,0.00015342,2]
[323010111,1713586252370,-1341.31,0.00015342,2]
[323010112,1713586252379,-500.0,0.00015342,2]
[323010113,1713586252389,-500.0,0.00015342,2]
[323010114,1713586252399,-500.0,0.00015342,2]
[323010115,1713586252408,-940.17,0.00015342,2]
[323010116,1713586252417,-500.0,0.00015342,2]
[323010117,1713586252427,-500.0,0.00015342,2]
[323010118,1713586252436,-500.0,0.00015342,2]
[323010119,1713586252445,-500.0,0.00015342,2]
[323010120,1713586252455,-500.0,0.00015342,2]
[323010121,1713586252464,-1672.36,0.00015342,2]
[323010122,1713586252473,-1790.84,0.00015342,2]
[323010123,1713586252483,-500.0,0.00015342,2]
[323010124,1713586252492,-500.0,0.00015342,2]
[323010125,1713586252502,-1577.86,0.00015342,2]
[323010126,1713586252512,-500.0,0.00015342,2]
[323010127,1713586252521,-500.0,0.00015342,2]
[323010128,1713586252530,-1100.03,0.00015342,2]
[323010129,1713586252539,-150.0,0.00015342,2]
[323010130,1713586252553,-500.0,0.00015342,2]
[323010131,1713586252562,-500.0,0.00015342,2]
[323010132,1713586252572,-1168.09,0.00015342,2]
[323010133,1713586252582,-500.0,0.00015342,2]
[323010134,1713586252591,-571.98578913,0.00015342,2]
[323010135,1713586252600,-707.52,0.00015342,2]
[323010136,1713586252609,-500.0,0.00015342,2]
[323010137,1713586252619,-850.38,0.00015342,2]
[323010138,1713586252628,-500.0,0.00015342,2]
[323010139,1713586252637,-500.0,0.00015342,2]
[323010140,1713586252647,-1549.19,0.00015342,2]
[323010141,1713586252656,-500.0,0.00015342,2]
[323010142,1713586252666,-500.0,0.00015342,2]
[323010143,1713586252675,-500.0,0.00015342,2]
[323010144,1713586252685,-500.0,0.00015342,2]
[323010145,1713586252694,-500.0,0.00015342,2]
[323010146,1713586252703,-500.0,0.00015342,2]
[323010147,1713586252712,-1562.33,0.00015342,2]
[323010148,1713586252721,-628.14,0.00015342,2]
[323010149,1713586252731,-515.52,0.00015342,2]
[323010150,1713586253053,-500.0,0.00015342,2]
[323010151,1713586253076,-683.47,0.00015342,2]
[323010152,1713586253086,-500.0,0.00015342,2]
[323010153,1713586253095,-519.52,0.00015342,2]
[323010154,1713586253104,-1635.57,0.00015342,2]
[323010155,1713586253113,-1565.42,0.00015342,2]
[323010156,1713586253123,-500.0,0.00015342,2]
[323010157,1713586253131,-1473.24,0.00015342,2]
[323010158,1713586253140,-1216.24,0.00015342,2]
[323010159,1713586253149,-500.0,0.00015342,2]
[323010160,1713586253159,-567.29,0.00015342,2]
[323010161,1713586253168,-500.0,0.00015342,2]
[323010162,1713586253176,-691.1,0.00015342,2]
[323010163,1713586253186,-1301.9,0.00015342,2]
[323010164,1713586253196,-537.84,0.00015342,2]
[323010165,1713586253205,-500.0,0.00015342,2]
[323010166,1713586253215,-560.28,0.00015342,2]
[323010167,1713586253224,-500.0,0.00015342,2]
[323010168,1713586253233,-609.33,0.00015342,2]
[323010169,1713586253242,-500.0,0.00015342,2]
[323010170,1713586253251,-1402.22,0.00015342,2]
[323010171,1713586253260,-500.0,0.00015342,2]
[323010172,1713586253269,-525.44,0.00015342,2]
[323010173,1713586253279,-500.0,0.00015342,2]
[323010174,1713586253290,-1036.4,0.00015342,2]
[323010175,1713586253301,-585.76,0.00015342,2]
[323010176,1713586253310,-662.69,0.00015342,2]
[323010177,1713586253319,-500.0,0.00015342,2]
[323010178,1713586253329,-500.0,0.00015342,2]
[323010179,1713586253338,-500.0,0.00015342,2]
[323010180,1713586253347,-500.0,0.00015342,2]
[323010181,1713586253356,-500.0,0.00015342,2]
[323010182,1713586253366,-1334.47,0.00015342,2]
[323010183,1713586253375,-500.0,0.00015342,2]
[323010184,1713586253385,-500.0,0.00015342,2]
[323010185,1713586253394,-847.02,0.00015342,2]
[323010186,1713586253403,-536.84,0.00015342,2]
[323010187,1713586253412,-500.0,0.00015342,2]
[323010188,1713586253421,-2548.03,0.00015342,2]
[323010189,1713586253430,-500.0,0.00015342,2]
[323010190,1713586253439,-630.75,0.00015342,2]
[323010191,1713586253448,-500.0,0.00015342,2]
[323010192,1713586253457,-1657.38,0.00015342,2]
[323010193,1713586253466,-630.48,0.00015342,2]
[323010194,1713586253475,-500.0,0.00015342,2]
[323010195,1713586253484,-1028.83,0.00015342,2]
[323010196,1713586253493,-500.0,0.00015342,2]
[323010197,1713586253502,-500.0,0.00015342,2]
[323010198,1713586253512,-991.36,0.00015342,2]
[323010199,1713586253521,-649.23,0.00015342,2]
[323010200,1713586253530,-715.72,0.00015342,2]
[323010201,1713586253539,-500.0,0.00015342,2]
[323010202,1713586253550,-500.0,0.00015342,2]
[323010203,1713586253559,-500.0,0.00015342,2]
[323010204,1713586253568,-500.0,0.00015342,2]
[323010205,1713586253577,-2732.76,0.00015342,2]
[323010206,1713586253586,-704.28,0.00015342,2]
[323010207,1713586253595,-3063.59,0.00015342,2]
[323010208,1713586253604,-363.07617098,0.00015342,2]
[323010209,1713586253614,-500.0,0.00015342,2]
[323010210,1713586253623,-519.89,0.00015342,2]
[323010211,1713586253633,-500.0,0.00015342,2]
[323010212,1713586253642,-1381.52,0.00015342,2]
[323010213,1713586253652,-500.0,0.00015342,2]
[323010214,1713586253661,-1956.19,0.00015342,2]
[323010215,1713586253671,-500.0,0.00015342,2]
[323010216,1713586253681,-3961.53,0.00015342,2]
[323010217,1713586253690,-500.0,0.00015342,2]
[323010218,1713586253699,-999.86,0.00015342,2]
[323010219,1713586253709,-995.06,0.00015342,2]
[323010220,1713586253718,-500.0,0.00015342,2]
[323010221,1713586253728,-584.13253165,0.00015342,2]
[323010222,1713586253737,-500.0,0.00015342,2]
[323010223,1713586253747,-500.0,0.00015342,2]
[323010224,1713586253756,-1569.31,0.00015342,2]
[323010225,1713586253766,-500.0,0.00015342,2]
[323010226,1713586253775,-500.0,0.00015342,2]
[323010227,1713586253784,-1051.47,0.00015342,2]
[323010228,1713586253794,-616.84,0.00015342,2]
[323010229,1713586253804,-650.38,0.00015342,2]
[323010230,1713586253813,-1432.98,0.00015342,2]
[323010231,1713586253823,-1977.51,0.00015342,2]
[323010232,1713586253833,-500.0,0.00015342,2]
[323010233,1713586253842,-500.0,0.00015342,2]
[323010234,1713586253851,-686.18,0.00015342,2]
[323010235,1713586253860,-854.27,0.00015342,2]
[323010236,1713586253869,-510.47935745,0.00015342,2]
[323010237,1713586253878,-500.0,0.00015342,2]
[323010238,1713586253888,-500.0,0.00015342,2]
[323010239,1713586253897,-500.0,0.00015342,2]
[323010240,1713586253906,-1245.76,0.00015342,2]
[323010241,1713586253915,-500.0,0.00015342,2]
[323010242,1713586253925,-618.08,0.00015342,2]
[323010243,1713586253934,-4963.12,0.00015342,2]
[323010244,1713586253943,-500.0,0.00015342,2]
[323010245,1713586253952,-500.0,0.00015342,2]
[323010246,1713586253961,-502.08,0.00015342,2]
[323010247,1713586253971,-500.0,0.00015342,2]
[323010248,1713586253980,-500.0,0.00015342,2]
[323010249,1713586253989,-1256.68,0.00015342,2]
[323010250,1713586253999,-2072.47,0.00015342,2]
[323010251,1713586254009,-500.0,0.00015342,2]
[323010252,1713586254018,-500.0,0.00015342,2]
[323010253,1713586254027,-1105.27,0.00015342,2]
[323010254,1713586254037,-500.0,0.00015342,2]
[323010255,1713586254047,-1836.84,0.00015342,2]
[323010256,1713586254057,-500.0,0.00015342,2]
[323010257,1713586254066,-2093.84,0.00015342,2]
[323010258,1713586254075,-500.0,0.00015342,2]
[323010259,1713586254085,-500.0,0.00015342,2]
[323010260,1713586254094,-1057.25,0.00015342,2]
[323010261,1713586254103,-817.78,0.00015342,2]
[323010262,1713586254113,-1041.5,0.00015342,2]
[323010263,1713586254122,-500.0,0.00015342,2]
[323010264,1713586254131,-512.28,0.00015342,2]
[323010265,1713586254141,-2498.65,0.00015342,2]
[323010266,1713586254150,-500.0,0.00015342,2]
[323010267,1713586254159,-25452.44,0.00015342,2]
[323010268,1713586254169,-2702.26,0.00015342,2]
[323010269,1713586254179,-500.0,0.00015342,2]
[323010270,1713586254189,-500.0,0.00015342,2]
[323010271,1713586254198,-3362.34,0.00015342,2]
[323010272,1713586254208,-5609.35,0.00015342,2]
[323010273,1713586254217,-500.0,0.00015342,2]
[323010274,1713586254227,-500.0,0.00015342,2]
[323010275,1713586254236,-2252.88,0.00015342,2]
[323010276,1713586254246,-500.0,0.00015342,2]
[323010277,1713586254256,-1337.59,0.00015342,2]
[323010278,1713586254266,-532.11,0.00015342,2]
[323010279,1713586254277,-18319.72,0.00015342,2]
[323010280,1713586254291,-500.0,0.00015342,2]
[323010281,1713586254303,-500.0,0.00015342,2]
[323010282,1713586254312,-500.0,0.00015342,2]
[323010283,1713586254322,-500.0,0.00015342,2]
[323010284,1713586254333,-916.69,0.00015342,2]
[323010285,1713586254342,-500.0,0.00015342,2]
[323010286,1713586254352,-611.27,0.00015342,2]
[323010287,1713586254362,-500.0,0.00015342,2]
[323010288,1713586254372,-500.0,0.00015342,2]
[323010289,1713586254381,-500.0,0.00015342,2]
[323010290,1713586254391,-2286.42,0.00015342,2]
[323010291,1713586254401,-500.0,0.00015342,2]
[323010292,1713586254410,-500.0,0.00015342,2]
[323010293,1713586254419,-500.0,0.00015342,2]
[323010294,1713586254429,-1597.7,0.00015342,2]
[323010295,1713586254438,-500.0,0.00015342,2]
[323010296,1713586254448,-500.0,0.00015342,2]
[323010297,1713586254458,-965.86,0.00015342,2]
[323010298,1713586254467,-500.0,0.00015342,2]
[323010299,1713586254477,-500.0,0.00015342,2]
[323010300,1713586254486,-500.0,0.00015342,2]
[323010301,1713586254496,-574.5,0.00015342,2]
[323010302,1713586254506,-500.0,0.00015342,2]
[323010303,1713586254516,-1896.41,0.00015342,2]
[323010304,1713586254526,-937.91,0.00015342,2]
[323010305,1713586254535,-1396.69,0.00015342,2]
[323010306,1713586254545,-1209.29,0.00015342,2]
[323010307,1713586254555,-500.0,0.00015342,2]
[323010308,1713586254564,-525.43,0.00015342,2]
[323010309,1713586254573,-500.0,0.00015342,2]
[323010310,1713586254583,-9994.01,0.00015342,2]
[323010311,1713586254592,-500.0,0.00015342,2]
[323010312,1713586254601,-1056.96,0.00015342,2]
[323010313,1713586254610,-500.0,0.00015342,2]
[323010314,1713586254620,-1255.25,0.00015342,2]
[323010315,1713586254630,-2028.45,0.00015342,2]
[323010316,1713586254639,-500.0,0.00015342,2]
[323010317,1713586254649,-500.0,0.00015342,2]
[323010318,1713586254659,-3585.9,0.00015342,2]
[323010319,1713586254669,-5445.37,0.00015342,2]
[323010320,1713586254678,-599.72,0.00015342,2]
[323010321,1713586254688,-500.0,0.00015342,2]
[323010322,1713586254698,-632.23,0.00015342,2]
[323010323,1713586254708,-500.0,0.00015342,2]
[323010324,1713586254717,-500.0,0.00015342,2]
[323010325,1713586254726,-500.0,0.00015342,2]
[323010326,1713586254736,-940.31,0.00015342,2]
[323010327,1713586254746,-735.39,0.00015342,2]
[323010328,1713586254755,-2004.42,0.00015342,2]
[323010329,1713586254765,-679.69,0.00015342,2]
[323010330,1713586254775,-500.0,0.00015342,2]
[323010331,1713586254785,-500.0,0.00015342,2]
[323010332,1713586254794,-500.0,0.00015342,2]
[323010333,1713586254808,-500.0,0.00015342,2]
[323010334,1713586254818,-500.0,0.00015342,2]
[323010335,1713586254827,-1202.23,0.00015342,2]
[323010336,1713586254836,-500.0,0.00015342,2]
[323010337,1713586254846,-500.0,0.00015342,2]
[323010338,1713586254855,-2083.78,0.00015342,2]
[323010339,1713586254865,-857.27,0.00015342,2]
[323010340,1713586254874,-5696.28,0.00015342,2]
[323010341,1713586254884,-2397.89,0.00015342,2]
[323010342,1713586254893,-500.0,0.00015342,2]
[323010343,1713586254903,-693.59,0.00015342,2]
[323010344,1713586254912,-500.0,0.00015342,2]
[323010345,1713586254922,-500.0,0.00015342,2]
[323010346,1713586254931,-1448.5,0.00015342,2]
[323010347,1713586254940,-500.0,0.00015342,2]
[323010348,1713586254949,-899.35,0.00015342,2]
[323010349,1713586254959,-500.0,0.00015342,2]
[323010350,1713586254968,-884.77,0.00015342,2]
[323010351,1713586254977,-500.0,0.00015342,2]
[323010352,1713586254987,-500.0,0.00015342,2]
[323010353,1713586254996,-1266.08,0.00015342,2]
[323010354,1713586255006,-500.0,0.00015342,2]
[323010355,1713586255015,-1705.36,0.00015342,2]
[323010356,1713586255025,-500.0,0.00015342,2]
[323010357,1713586255034,-669.55,0.00015342,2]
[323010358,1713586255044,-3192.34,0.00015342,2]
[323010359,1713586255055,-500.0,0.00015342,2]
[323010360,1713586255064,-500.0,0.00015342,2]
[323010361,1713586255073,-500.0,0.00015342,2]
[323010362,1713586255083,-753.19,0.00015342,2]
[323010363,1713586255092,-500.0,0.00015342,2]
[323010364,1713586255101,-1220.18,0.00015342,2]
[323010365,1713586255110,-849.39,0.00015342,2]
[323010366,1713586255120,-22511.03,0.00015342,2]
[323010367,1713586255130,-690.5,0.00015342,2]
[323010368,1713586255139,-564.99,0.00015342,2]
[323010369,1713586255148,-568.54,0.00015342,2]
[323010370,1713586255158,-830.02,0.00015342,2]
[323010371,1713586255168,-2106.94,0.00015342,2]
[323010372,1713586255177,-500.0,0.00015342,2]
[323010373,1713586255188,-500.0,0.00015342,2]
[323010374,1713586255198,-500.0,0.00015342,2]
[323010375,1713586255207,-500.0,0.00015342,2]
[323010376,1713586255217,-500.0,0.00015342,2]
[323010377,1713586255226,-2789.44,0.00015342,2]
[323010378,1713586255236,-1836.04,0.00015342,2]
[323010379,1713586255246,-517.66,0.00015342,2]
[323010380,1713586255255,-500.0,0.00015342,2]
[323010381,1713586255265,-911.48,0.00015342,2]
[323010382,1713586255274,-574.42,0.00015342,2]
[323010383,1713586255287,-1674.14,0.00015342,2]
[323010384,1713586255299,-998.17,0.00015342,2]
[323010385,1713586255308,-500.0,0.00015342,2]
[323010386,1713586255318,-2679.79,0.00015342,2]
[323010387,1713586255329,-500.0,0.00015342,2]
[323010388,1713586255338,-1144.85,0.00015342,2]
[323010389,1713586255348,-500.0,0.00015342,2]
[323010390,1713586255358,-1548.65,0.00015342,2]
[323010391,1713586255447,-2248.89,0.00015342,2]
[323010392,1713586255458,-500.0,0.00015342,2]
[323010393,1713586255469,-2247.45,0.00015342,2]
[323010394,1713586255479,-500.0,0.00015342,2]
[323010395,1713586255489,-500.0,0.00015342,2]
[323010396,1713586255500,-727.64,0.00015342,2]
[323010397,1713586255510,-204.33129269,0.00015342,2]
[323010398,1713586255519,-500.0,0.00015342,2]
[323010399,1713586255530,-4141.74,0.00015342,2]
[323010400,1713586255540,-1098.66,0.00015342,2]
[323010401,1713586255550,-417.83,0.00015342,2]
[323010402,1713586255559,-500.0,0.00015342,2]
[323010403,1713586255568,-1270.71,0.00015342,2]
[323010404,1713586255579,-2461.61,0.00015342,2]
[323010405,1713586255588,-790.22,0.00015342,2]
[323010406,1713586255598,-957.26,0.00015342,2]
[323010407,1713586255608,-1475.08,0.00015342,2]
[323010408,1713586255617,-500.0,0.00015342,2]
[323010409,1713586255627,-500.0,0.00015342,2]
[323010410,1713586255635,-500.0,0.00015342,2]
[323010411,1713586255645,-500.0,0.00015342,2]
[323010412,1713586255654,-2229.12,0.00015342,2]
[323010413,1713586255663,-1131.46,0.00015342,2]
[323010414,1713586255672,-500.0,0.00015342,2]
[323010415,1713586255681,-2100.29,0.00015342,2]
[323010416,1713586255690,-500.0,0.00015342,2]
[323010417,1713586255699,-846.16,0.00015342,2]
[323010418,1713586255709,-2198.22,0.00015342,2]
[323010419,1713586255718,-500.0,0.00015342,2]
[323010420,1713586255727,-825.51,0.00015342,2]
[323010421,1713586255736,-500.0,0.00015342,2]
[323010422,1713586255745,-500.0,0.00015342,2]
[323010423,1713586255753,-500.0,0.00015342,2]
[323010424,1713586255762,-1686.99,0.00015342,2]
[323010425,1713586255771,-500.0,0.00015342,2]
[323010426,1713586255780,-2566.0,0.00015342,2]
[323010427,1713586255789,-500.0,0.00015342,2]
[323010428,1713586255800,-819.76,0.00015342,2]
[323010429,1713586255810,-1028.65,0.00015342,2]
[323010430,1713586255819,-1636.23,0.00015342,2]
[323010431,1713586255828,-890.72,0.00015342,2]
[323010432,1713586255837,-820.24,0.00015342,2]
[323010433,1713586255846,-2614.43,0.00015342,2]
[323010434,1713586255855,-500.0,0.00015342,2]
[323010435,1713586255864,-500.0,0.00015342,2]
[323010436,1713586255873,-1000.79,0.00015342,2]
[323010437,1713586255882,-1291.62,0.00015342,2]
[323010438,1713586255891,-1561.27,0.00015342,2]
[323010439,1713586255900,-720.08,0.00015342,2]
[323010440,1713586255908,-1457.32,0.00015342,2]
[323010441,1713586255918,-500.0,0.00015342,2]
[323010442,1713586255928,-528.29,0.00015342,2]
[323010443,1713586255939,-1809.89,0.00015342,2]
[323010444,1713586255950,-353.75213581,0.00015342,2]
[323010445,1713586255960,-4054.19,0.00015342,2]
[323010446,1713586255970,-500.0,0.00015342,2]
[323010447,1713586255980,-1188.39,0.00015342,2]
[323010448,1713586255991,-500.0,0.00015342,2]
[323010449,1713586256001,-1332.16,0.00015342,2]
[323010450,1713586256012,-500.0,0.00015342,2]
[323010451,1713586256022,-500.0,0.00015342,2]
[323010452,1713586256032,-500.0,0.00015342,2]
[323010453,1713586256043,-500.0,0.00015342,2]
[323010454,1713586256053,-500.0,0.00015342,2]
[323010455,1713586256062,-5851.89,0.00015342,2]
[323010456,1713586256071,-4062.79,0.00015342,2]
[323010457,1713586256080,-14317.96,0.00015342,2]
[323010458,1713586256089,-592.24,0.00015342,2]
[323010459,1713586256098,-829.59,0.00015342,2]
[323010460,1713586256107,-1634.94,0.00015342,2]
[323010461,1713586256116,-500.0,0.00015342,2]
[323010462,1713586256125,-410.27182518,0.00015342,2]
[323010463,1713586256134,-730.84,0.00015342,2]
[323010464,1713586256143,-938.93,0.00015342,2]
[323010465,1713586256152,-500.0,0.00015342,2]
[323010466,1713586256162,-2390.82,0.00015342,2]
[323010467,1713586256171,-500.0,0.00015342,2]
[323010468,1713586256180,-500.0,0.00015342,2]
[323010469,1713586256189,-1598.0,0.00015342,2]
[323010470,1713586256199,-22411.81,0.00015342,2]
[323010471,1713586256208,-500.0,0.00015342,2]
[323010472,1713586256217,-500.0,0.00015342,2]
[323010473,1713586256226,-500.0,0.00015342,2]
[323010474,1713586256235,-2634.32,0.00015342,2]
[323010475,1713586256244,-500.0,0.00015342,2]
[323010476,1713586256253,-4032.2,0.00015342,2]
[323010477,1713586256262,-2236.36,0.00015342,2]
[323010478,1713586256271,-1477.04,0.00015342,2]
[323010479,1713586256280,-802.84,0.00015342,2]
[323010480,1713586256292,-500.0,0.00015342,2]
[323010481,1713586256301,-1859.81,0.00015342,2]
[323010482,1713586256311,-500.0,0.00015342,2]
[323010483,1713586256320,-1797.36,0.00015342,2]
[323010484,1713586256330,-835.62,0.00015342,2]
[323010485,1713586256339,-500.0,0.00015342,2]
[323010486,1713586256348,-1995.8,0.00015342,2]
[323010487,1713586256358,-4708.29,0.00015342,2]
[323010488,1713586256367,-3191.67,0.00015342,2]
[323010489,1713586256376,-500.0,0.00015342,2]
[323010490,1713586256385,-1909.6,0.00015342,2]
[323010491,1713586256395,-1321.01,0.00015342,2]
[323010492,1713586256404,-500.0,0.00015342,2]
[323010493,1713586256414,-500.0,0.00015342,2]
[323010494,1713586256423,-164.42,0.00015342,2]
[323010495,1713586256432,-536.63,0.00015342,2]
[323010496,1713586256442,-632.44717744,0.00015342,2]
[323010497,1713586256451,-5042.94,0.00015342,2]
[323010498,1713586256460,-3031.95,0.00015342,2]
[323010499,1713586256469,-1463.72,0.00015342,2]
[323010500,1713586256479,-570.64,0.00015342,2]
[323010501,1713586256487,-1483.09,0.00015342,2]
[323010502,1713586256497,-500.0,0.00015342,2]
[323010503,1713586256506,-6339.13,0.00015342,2]
[323010504,1713586256515,-500.0,0.00015342,2]
[323010505,1713586256524,-500.0,0.00015342,2]
[323010506,1713586256533,-789.95,0.00015342,2]
[323010507,1713586256542,-2307.6,0.00015342,2]
[323010508,1713586256552,-500.0,0.00015342,2]
[323010509,1713586256561,-500.0,0.00015342,2]
[323010510,1713586256570,-500.0,0.00015342,2]
[323010511,1713586256579,-3989.84,0.00015342,2]
[323010512,1713586256589,-824.95,0.00015342,2]
[323010513,1713586256598,-734.64,0.00015342,2]
[323010514,1713586256608,-500.0,0.00015342,2]
[323010515,1713586256617,-576.0,0.00015342,2]
[323010516,1713586256626,-1899.63,0.00015342,2]
[323010517,1713586256635,-780.14,0.00015342,2]
[323010518,1713586256645,-8592.5,0.00015342,2]
[323010519,1713586256654,-500.0,0.00015342,2]
[323010520,1713586256663,-544.66,0.00015342,2]
[323010521,1713586256672,-500.0,0.00015342,2]
[323010522,1713586256682,-500.0,0.00015342,2]
[323010523,1713586256691,-500.0,0.00015342,2]
[323010524,1713586256700,-171.34,0.00015342,2]
[323010525,1713586256709,-560.45,0.00015342,2]
[323010526,1713586256718,-404.92,0.00015342,2]
[323010527,1713586256727,-500.0,0.00015342,2]
[323010528,1713586256737,-2824.62,0.00015342,2]